bitfinex/quotes_ETHUSD_20250813
["timestamp","ask_amount","ask_price","bid_price","bid_amount"]
[1755052295709,0.465,4601.5,4601.4,5.208]
[1755052296036,2.1965,4601.5,4601.4,8.604]
[1755052296179,2.42703,4601.5,4601.4,8.604]
[1755052297107,2.42703,4601.5,4601.4,5.208]
[1755052297428,2.42703,4601.5,4601.4,8.603]
[1755052297784,2.97703,4601.5,4601.4,5.208]
[1755052298017,2.72332753,4601.3,4601.2,5.208]
[1755052298223,2.7465,4601.3,4601.2,5.208]
[1755052298408,2.8553,4601.3,4600.6,0.001]
[1755052298581,0.1088,4600.7,4600.6,0.001]
[1755052299092,2.3053,4600.7,4600.6,3.395]
[1755052299286,2.53583,4600.7,4600.6,0.001]
[1755052299510,2.53583,4600.7,4600.6,3.395]
[1755052299788,2.53583,4600.7,4600.6,3.394]
[1755052300113,0.55,4600.6,4600.4,0.001]
[1755052300287,0.55,4600.5,4600.4,0.001]
[1755052300696,4.92017677,4600.5,4600.0,0.001]
[1755052300897,0.6588,4600.3,4600.0,0.001]
[1755052301322,2.8553,4600.3,4600.0,0.001]
[1755052301594,3.38355538,4600.3,4600.0,0.001]
[1755052302127,3.38355538,4600.3,4600.2,3.394]
[1755052302434,3.38355538,4600.3,4600.2,3.393]
[1755052302617,3.38355538,4600.3,4600.0,0.001]
[1755052302618,2.83355538,4600.3,4600.0,0.001]
[1755052302932,2.1965,4600.2,4600.0,0.001]
[1755052303332,2.1965,4600.1,4600.0,0.001]
[1755052304045,2.7465,4600.1,4600.0,0.001]
[1755052304335,2.72393059,4600.0,4597.5,0.1088]
[1755052304500,0.1088,4599.5,4597.5,0.1088]
[1755052304702,0.1088,4598.0,4597.6,10.874005]
[1755052304910,0.1088,4598.0,4597.6,12.725708]
[1755052305212,0.1088,4598.0,4597.6,6.220001]
[1755052305407,0.1088,4598.0,4597.7,5.21]
[1755052305630,0.1088,4598.0,4597.8,5.796875]
[1755052305837,0.1088,4598.0,4597.8,12.11607]
[1755052306131,0.1088,4598.0,4597.9,3.39]
[1755052306321,0.465,4600.1,4597.9,22.898379]
[1755052306633,0.465,4599.9,4598.0,39.435]
[1755052306950,0.465,4599.9,4598.1,30.833]
[1755052307104,0.465,4599.9,4598.2,30.0]
[1755052307731,1.7315,4601.5,4598.2,30.0]
[1755052307929,0.465,4600.8,4598.3,1.12223893]
[1755052308139,0.465,4600.8,4598.4,30.0042]
[1755052308323,0.465,4600.8,4598.5,23.618924]
[1755052308525,1.7315,4600.7,4598.6,15.641398]
[1755052308840,1.7315,4600.7,4598.7,30.833]
[1755052309043,1.7315,4600.7,4598.8,30.833]
[1755052309044,1.95115,4600.7,4598.8,30.833]
[1755052309355,0.651863,4602.5,4600.7,13.502574]
[1755052309514,0.465,4601.9,4600.8,17.766479]
[1755052309708,0.465,4601.9,4600.9,5.211]
[1755052310154,1.7315,4601.8,4601.0,3.4]
[1755052310453,0.68465,4601.7,4601.1,3.4]
[1755052310749,0.68465,4601.7,4600.9,5.211]
[1755052310750,0.55,4601.6,4601.2,3.4]
[1755052310961,2.1965,4601.5,4601.2,3.4]
[1755052311110,0.55,4601.6,4601.2,3.4]
[1755052311311,2.17290664,4602.2,4600.9,5.211]
[1755052311312,2.1965,4601.5,4600.9,5.211]
[1755052311610,2.41615,4601.4,4601.0,3.399]
[1755052311906,0.98399388,4603.5,4601.0,3.399]
[1755052311907,0.55,4602.1,4601.0,3.399]
[1755052312319,0.55,4601.9,4601.0,3.399]
[1755052313015,1.015,4601.8,4601.1,3.401]
[1755052313228,0.465,4601.7,4601.1,3.401]
[1755052313435,0.27465,4601.6,4601.1,3.401]
[1755052313636,0.55,4602.4,4601.1,3.401]
[1755052313837,0.465,4601.6,4601.1,3.401]
[1755052314235,2.287,4603.6,4601.1,3.401]
[1755052314236,0.55,4602.2,4601.1,3.401]
[1755052314439,0.465,4602.2,4601.1,3.401]
[1755052316442,0.1088,4601.2,4601.1,3.401]
[1755052318319,0.1088,4601.2,4601.1,3.397]
[1755052318668,0.5738,4601.2,4601.1,3.395]
[1755052318976,0.5738,4601.2,4600.9,5.211]
[1755052319322,0.27470642,4601.1,4601.0,3.395]
[1755052319522,0.27470642,4601.1,4599.5,0.1088]
[1755052319523,0.55,4601.0,4600.8,5.211]
[1755052319755,2.72362952,4600.6,4600.5,5.211]
[1755052319924,0.55,4600.5,4600.2,5.211]
[1755052320118,0.994,4600.5,4600.2,5.211]
[1755052320326,0.1088,4600.3,4600.2,5.211]
[1755052320653,0.5528,4600.3,4600.2,5.211]
[1755052320859,0.5528,4600.3,4600.2,8.606]
[1755052321524,0.1088,4600.3,4600.2,8.605]
[1755052322257,0.1088,4600.3,4600.2,5.211]
[1755052322555,0.1088,4600.3,4600.2,8.605]
[1755052326244,0.1088,4600.3,4600.2,38.6092]
[1755052326438,0.1088,4600.3,4600.2,27.598984]
[1755052326643,0.1088,4600.3,4600.2,16.718684]
[1755052326885,0.1088,4600.3,4600.2,8.6092]
[1755052327052,0.1088,4600.3,4600.2,8.605]
[1755052327379,0.1088,4600.3,4600.2,13.691285]
[1755052327584,0.002,4602.1,4600.2,13.136109]
[1755052327767,0.002,4602.1,4600.3,30.0042]
[1755052328074,0.446,4602.1,4600.4,24.271793]
[1755052328275,0.446,4602.1,4600.5,11.397261]
[1755052328482,0.446,4602.1,4600.5,3.393]
[1755052328663,0.446,4602.1,4600.6,11.111378]
[1755052328868,0.446,4602.1,4600.7,4.951143]
[1755052329065,0.446,4602.1,4600.8,3.393]
[1755052329246,0.446,4602.1,4600.3,0.0042]
[1755052329449,0.446,4602.1,4600.4,24.909611]
[1755052329679,0.446,4602.1,4600.5,12.54138]
[1755052329843,0.446,4602.1,4600.6,6.380006]
[1755052330042,0.446,4602.1,4600.7,4.088306]
[1755052331484,0.446,4602.1,4600.7,3.856306]
[1755052334689,0.446,4602.1,4600.6,3.391]
[1755052334889,0.26188307,4602.0,4600.7,3.772301]
[1755052335056,0.26188307,4602.0,4600.6,3.391]
[1755052335256,0.444,4601.9,4600.7,4.139328]
[1755052335586,0.444,4601.9,4600.6,3.391]
[1755052337700,0.444,4601.9,4600.2,5.211]
[1755052337701,0.1088,4600.7,4600.2,5.211]
[1755052337904,0.55,4601.6,4600.3,3.383]
[1755052338110,0.444,4601.1,4600.3,3.383]
[1755052338264,0.1088,4600.4,4600.3,3.383]
[1755052338623,0.1088,4600.4,4600.3,7.431414]
[1755052338901,0.1088,4600.4,4600.3,3.383]
[1755052339067,0.1088,4600.4,4600.3,5.907114]
[1755052339267,0.1088,4600.4,4600.3,5.911314]
[1755052340299,0.1088,4600.6,4600.3,5.911314]
[1755052340501,0.1088,4600.6,4600.4,3.381]
[1755052341265,0.1088,4600.6,4600.5,5.156139]
[1755052341464,0.1088,4600.6,4600.5,4.933541]
[1755052341686,0.1088,4600.6,4600.5,4.710192]
[1755052344104,0.1088,4600.6,4600.5,4.44213]
[1755052344704,0.1088,4600.6,4600.5,2.9697]
[1755052344898,0.1088,4600.6,4600.4,3.381]
[1755052345102,0.1088,4600.6,4600.5,5.0537]
[1755052345464,0.1088,4600.6,4600.5,2.960736]
[1755052345670,0.1088,4600.6,4600.4,3.381]
[1755052345870,0.1088,4600.6,4600.5,6.338736]
[1755052346080,0.1088,4600.6,4600.2,5.211]
[1755052346291,0.446,4601.1,4600.3,5.950847]
[1755052346484,0.446,4601.1,4600.3,3.378]
[1755052346699,0.1088,4600.4,4600.3,3.378]
[1755052346903,0.1088,4600.4,4600.3,8.362046]
[1755052347202,0.1088,4600.4,4600.2,5.211]
[1755052347412,0.1088,4600.4,4600.3,3.378]
[1755052352085,0.5811,4600.4,4600.3,3.378]
[1755052352812,1.1311,4600.4,4600.3,3.378]
[1755052353029,1.24421,4600.4,4600.2,5.211]
[1755052353180,0.77191,4600.4,4600.3,3.378]
[1755052353809,1.24421,4600.4,4600.3,3.378]
[1755052356315,1.24421,4600.4,4600.2,5.211]
[1755052356622,1.146721,4600.3,4598.6,2.709]
[1755052356800,3.32050323,4600.3,4599.4,8.589]
[1755052357115,0.55,4600.1,4599.4,5.211]
[1755052357320,0.55,4599.9,4599.5,3.378]
[1755052357518,0.55,4599.7,4599.5,3.378]
[1755052357720,0.55,4599.5,4599.4,5.211]
[1755052357890,3.30524936,4599.5,4599.4,8.589]
[1755052358085,1.46162494,4599.5,4599.4,5.211]
[1755052358582,1.1311,4599.5,4599.4,5.211]
[1755052359186,3.3052526,4599.5,4599.4,5.211]
[1755052359490,2.17419663,4599.4,4599.3,5.212]
[1755052359689,2.17419663,4599.4,4599.3,3.378]
[1755052359690,3.19649663,4599.4,4599.3,3.378]
[1755052359921,3.19649663,4599.4,4598.4,0.001]
[1755052360118,0.1088,4598.5,4598.4,0.001]
[1755052360713,0.5811,4598.5,4598.4,0.001]
[1755052361114,0.5811,4598.5,4598.4,3.379]
[1755052361426,0.1088,4598.5,4598.4,3.379]
[1755052361627,0.1088,4598.5,4598.4,29.166304]
[1755052361803,0.1088,4598.8,4598.4,16.30626593]
[1755052362003,0.1088,4598.8,4598.5,11.750715]
[1755052362320,0.1088,4598.8,4598.6,15.378249]
[1755052362690,0.1088,4598.8,4598.6,0.0042]
[1755052363037,1.0223,4600.2,4598.7,14.631989]
[1755052363038,0.1088,4599.0,4598.7,14.631989]
[1755052363205,0.1088,4599.0,4598.8,25.256192]
[1755052363531,0.1088,4599.0,4598.9,23.75266]
[1755052363833,0.002,4601.1,4598.9,23.75266]
[1755052363834,0.002,4601.1,4598.9,33.3822]
[1755052364037,0.1088,4600.3,4599.6,0.1088]
[1755052364299,0.1088,4600.3,4599.7,33.378]
[1755052364457,0.1088,4600.3,4599.8,30.0]
[1755052364954,0.1088,4600.3,4599.9,0.0042]
[1755052365157,0.1088,4600.3,4600.0,30.0]
[1755052365311,0.1088,4600.3,4600.1,8.59]
[1755052365505,0.1088,4600.3,4600.1,38.59]
[1755052365738,0.1088,4600.3,4600.2,28.976293]
[1755052366125,0.1088,4600.3,4600.2,27.519721]
[1755052366409,0.1088,4600.3,4600.2,27.2337]
[1755052367756,0.1088,4600.3,4600.2,28.03151]
[1755052368342,0.1088,4600.3,4600.2,27.295358]
[1755052368544,0.1088,4600.3,4600.2,24.386126]
[1755052368753,0.1088,4600.3,4600.2,25.978549]
[1755052369260,0.1088,4600.3,4600.2,24.212698]
[1755052369690,0.1088,4600.3,4600.2,23.212575]
[1755052370001,0.1088,4600.3,4600.2,4.54448]
[1755052370138,0.1088,4600.3,4600.2,4.098797]
[1755052370341,0.1088,4600.3,4600.2,2.956759]
[1755052370776,0.1088,4600.3,4600.2,6.245745]
[1755052370938,0.1088,4600.3,4600.2,22.708065]
[1755052371141,0.1088,4600.3,4600.2,21.470591]
[1755052371347,0.1088,4600.3,4600.2,18.093591]
[1755052371677,0.1088,4600.3,4600.2,21.470591]
[1755052371873,0.002,4600.4,4600.2,33.36389]
[1755052372043,0.002,4600.4,4600.3,27.15726]
[1755052372385,0.002,4600.4,4600.3,27.16146]
[1755052372679,0.002,4600.4,4600.3,27.15726]
[1755052372981,0.002,4600.4,4600.3,30.0]
[1755052374675,0.002,4600.4,4600.1,5.212]
[1755052374878,0.002,4600.4,4600.3,3.377]
[1755052375777,0.4743,4600.4,4600.3,3.377]
[1755052378078,0.002,4600.4,4600.3,3.377]
[1755052379269,0.4743,4600.4,4600.3,3.377]
[1755052380381,2.0847,4600.4,4600.3,3.377]
[1755052381657,2.0847,4600.4,4600.1,5.212]
[1755052381898,2.0542,4600.3,4599.9,0.1088]
[1755052382077,2.0542,4600.3,4600.0,8.588]
[1755052382383,0.1088,4600.1,4600.0,5.211]
[1755052382710,2.163,4600.1,4600.0,8.588]
[1755052382863,2.713,4600.1,4600.0,5.211]
[1755052383061,2.0542,4600.1,4600.0,5.211]
[1755052383265,2.163,4600.1,4600.0,5.211]
[1755052383570,2.3795,4600.1,4600.0,5.211]
[1755052384178,2.3795,4600.1,4600.0,8.587]
[1755052384498,0.3253,4600.1,4600.0,8.587]
[1755052384805,0.1088,4600.1,4600.0,8.587]
[1755052388394,0.002,4600.4,4600.0,8.587]
[1755052388395,0.1108,4600.4,4600.0,8.587]
[1755052390098,0.002,4600.4,4600.0,8.5912]
[1755052390299,0.002,4600.4,4600.1,0.7421]
[1755052390467,0.002,4600.4,4600.2,3.376]
[1755052398782,0.002,4600.4,4600.1,0.1088]
[1755052399104,0.002,4600.4,4600.2,3.375]
[1755052400608,0.002,4600.4,4600.3,3.375]
[1755052400807,2.0542,4600.3,4600.1,0.1088]
[1755052401108,0.4438,4600.3,4600.2,3.375]
[1755052401472,2.0542,4600.3,4600.0,5.211]
[1755052401676,2.0542,4600.3,4600.1,3.375]
[1755052401677,2.0542,4600.2,4600.1,3.375]
[1755052402097,2.6042,4600.2,4600.1,8.586]
[1755052402296,2.6042,4600.2,4600.1,5.211]
[1755052402905,0.55,4600.1,4598.8,0.001]
[1755052403073,2.885382,4600.1,4599.4,5.211]
[1755052403274,0.55,4599.9,4599.4,5.211]
[1755052403479,0.55,4599.7,4599.5,3.375]
[1755052403815,0.55,4599.5,4598.8,0.001]
[1755052404009,0.81042,4599.4,4598.8,0.001]
[1755052404322,2.86462,4599.4,4599.3,1.325]
[1755052404487,0.55,4599.3,4598.8,0.001]
[1755052404699,2.6042,4599.3,4598.8,0.001]
[1755052405211,0.55,4599.1,4598.8,0.001]
[1755052405419,0.26042,4599.0,4598.9,5.211]
[1755052405626,2.31462,4599.0,4598.9,5.211]
[1755052405833,2.0542,4599.0,4598.9,8.586]
[1755052408214,0.4438,4599.3,4598.9,8.586]
[1755052408536,2.0542,4599.2,4598.9,8.586]
[1755052408725,0.55,4599.9,4598.9,8.586]
[1755052408932,2.0542,4599.1,4598.9,8.586]
[1755052409113,2.0542,4599.0,4598.9,8.586]
[1755052409447,2.25962,4599.0,4598.9,8.586]
[1755052411621,2.36842,4599.0,4598.9,8.586]
[1755052415044,2.17400165,4599.9,4598.9,5.211]
[1755052415449,0.1088,4599.0,4598.9,5.211]
[1755052415749,0.1088,4599.0,4598.9,8.586]
[1755052416142,0.1088,4599.0,4598.9,5.211]
[1755052416349,0.1088,4599.0,4598.9,8.586]
[1755052417137,2.1781,4599.0,4598.9,8.586]
[1755052417913,2.39591,4599.0,4598.9,5.211]
[1755052418112,2.39591,4599.0,4598.9,8.586]
[1755052418334,2.39591,4599.0,4598.8,0.001]
[1755052418335,0.55,4598.9,4598.8,0.001]
[1755052418551,4.79373301,4598.9,4598.8,3.376]
[1755052418865,0.55,4598.7,4598.0,0.001]
[1755052419068,2.72466945,4598.4,4598.2,5.213]
[1755052419219,2.72481133,4598.1,4598.0,0.001]
[1755052419724,2.72481133,4598.1,4597.5,5.213]
[1755052419923,2.72506361,4597.6,4597.3,0.001]
[1755052420123,2.72506361,4597.6,4597.4,8.588]
[1755052420348,4.79439516,4597.5,4597.4,8.588]
[1755052420551,2.72514247,4597.4,4597.3,0.001]
[1755052420762,4.93169815,4597.4,4597.3,3.375]
[1755052420919,2.72528441,4597.1,4596.2,0.001]
[1755052421120,0.55,4597.1,4596.2,0.001]
[1755052421346,2.6193,4597.1,4596.2,0.001]
[1755052422141,0.55,4597.6,4597.0,3.376]
[1755052422316,0.81193,4597.6,4597.0,3.376]
[1755052422518,0.55,4597.6,4597.0,3.376]
[1755052423142,0.55,4597.6,4597.0,0.001]
[1755052423337,0.55,4597.6,4597.1,3.375]
[1755052423542,0.55,4597.8,4597.2,3.375]
[1755052423852,0.9995,4597.8,4597.2,3.375]
[1755052424055,0.55,4597.6,4597.2,3.375]
[1755052424441,0.9995,4597.6,4597.2,3.375]
[1755052425045,0.4495,4597.5,4597.2,3.375]
[1755052425218,0.4495,4597.5,4597.0,0.001]
[1755052425219,0.55,4597.6,4597.0,0.001]
[1755052425424,0.55,4597.9,4597.1,8.589]
[1755052425625,0.97440807,4597.9,4597.1,8.589]
[1755052425936,0.4495,4597.8,4597.1,8.589]
[1755052426557,0.55,4597.6,4597.1,8.589]
[1755052426760,2.0693,4597.5,4597.1,8.589]
[1755052426962,2.54873937,4597.4,4597.1,8.589]
[1755052427278,0.4495,4597.3,4597.1,8.589]
[1755052427652,0.55,4597.1,4597.0,0.001]
[1755052427961,0.55,4597.1,4597.0,8.59]
[1755052428266,0.4495,4597.2,4597.0,8.59]
[1755052428431,0.55,4597.5,4597.0,8.59]
[1755052428760,0.1088,4597.1,4597.0,8.59]
[1755052429370,0.1088,4597.1,4597.0,10.1758]
[1755052430157,0.1088,4597.1,4597.0,0.001]
[1755052430371,0.1088,4597.1,4597.0,8.591]
[1755052431066,0.1088,4597.1,4597.0,5.216]
[1755052431433,0.5583,4597.1,4597.0,8.591]
[1755052431639,2.7281,4597.1,4597.0,5.215]
[1755052431963,4.93465568,4597.1,4597.0,5.215]
[1755052432132,0.55,4597.0,4596.7,0.001]
[1755052432337,25.0287744,4596.8,4596.7,0.001]
[1755052432583,25.0287744,4596.8,4596.7,3.376]
[1755052432777,2.7254737,4596.7,4596.5,0.001]
[1755052432978,4.93202938,4596.7,4596.6,5.215]
[1755052433177,2.72552103,4596.6,4596.5,5.216]
[1755052433335,0.55,4596.5,4596.2,0.001]
[1755052433538,0.1088,4596.3,4596.2,0.001]
[1755052433885,2.28446303,4596.3,4596.2,3.376]
[1755052434090,2.72571555,4596.2,4596.0,0.001]
[1755052434250,4.79501555,4596.2,4596.0,0.001]
[1755052434439,26.43960572,4596.1,4596.0,0.001]
[1755052434632,28.6461614,4596.1,4596.0,0.001]
[1755052435087,29.1961614,4596.1,4596.0,0.001]
[1755052435281,29.1961614,4596.1,4596.0,2.058]
[1755052435486,2.72585239,4595.9,4595.6,5.215]
[1755052435978,0.55,4595.7,4595.6,5.215]
[1755052436178,0.55,4595.7,4595.4,5.215]
[1755052436179,3.16470116,4595.7,4595.4,5.215]
[1755052436344,1.54490116,4595.7,4595.5,5.215]
[1755052436758,1.54490116,4595.7,4595.6,3.375]
[1755052436954,1.1083,4595.7,4595.6,3.375]
[1755052437152,0.6588,4595.7,4595.5,5.215]
[1755052437371,0.55,4595.5,4594.6,5.215]
[1755052437572,0.55,4595.5,4594.7,8.59]
[1755052437760,0.55,4595.3,4594.8,8.59]
[1755052438474,0.55,4595.3,4594.8,5.215]
[1755052438681,0.55,4595.1,4594.9,3.375]
[1755052438878,22.74454802,4594.9,4594.8,5.215]
[1755052439046,24.81384802,4594.9,4594.8,8.59]
[1755052439248,0.55,4594.9,4594.8,8.59]
[1755052439752,24.75594802,4594.9,4594.8,5.215]
[1755052439957,26.9625037,4594.9,4594.8,8.59]
[1755052440777,26.9625037,4594.9,4594.8,5.215]
[1755052440963,26.9625037,4594.9,4594.8,8.59]
[1755052441167,2.72637329,4594.8,4594.7,5.216]
[1755052441353,0.55,4594.6,4594.4,5.217]
[1755052441555,0.55,4594.4,4594.3,5.217]
[1755052441762,2.5614,4594.4,4594.3,5.217]
[1755052442273,2.5614,4594.4,4593.8,0.001]
[1755052442473,0.25614,4594.3,4593.9,2.031]
[1755052442651,0.55,4594.6,4593.9,2.031]
[1755052442980,0.55,4594.8,4593.9,2.031]
[1755052443196,22.74454802,4594.1,4594.0,3.375]
[1755052443503,0.55,4594.0,4593.8,0.001]
[1755052443697,0.9942,4594.0,4593.9,3.375]
[1755052444197,0.9942,4594.0,4593.8,0.001]
[1755052444412,2.5614,4593.9,4593.8,0.001]
[1755052444607,4.76795568,4593.9,4593.8,3.376]
[1755052444767,0.55,4593.8,4593.4,0.001]
[1755052444962,22.74454802,4593.5,4593.4,0.001]
[1755052445276,0.55,4593.5,4593.4,0.001]
[1755052445462,0.55,4593.5,4593.4,5.218]
[1755052446087,2.75655568,4593.5,4593.4,5.218]
[1755052446295,2.75655568,4593.5,4593.4,8.593]
[1755052446499,3.20075568,4593.5,4593.4,8.593]
[1755052446796,0.55,4593.5,4593.4,8.593]
[1755052447186,0.6588,4593.5,4593.4,8.593]
[1755052447768,0.6588,4593.5,4592.7,0.428]
[1755052447769,0.55,4593.4,4592.7,5.218]
[1755052447987,0.55,4593.4,4592.8,3.376]
[1755052448175,27.36520935,4594.5,4592.8,5.5168]
[1755052448176,0.55,4593.9,4592.8,5.5168]
[1755052448383,2.20655568,4594.4,4592.9,2.1408]
[1755052448582,27.36520935,4595.3,4593.0,10.931184]
[1755052448583,0.55,4594.3,4593.0,10.931184]
[1755052448774,0.55,4594.5,4592.8,3.376]
[1755052448975,0.4442,4595.3,4593.1,2.1408]
[1755052449205,0.4442,4595.9,4593.2,30.428]
[1755052449501,2.17602659,4595.6,4593.3,11.397646]
[1755052449664,27.36520935,4595.4,4593.4,2.1408]
[1755052449870,27.36520935,4595.4,4592.7,5.218]
[1755052449871,0.55,4594.3,4592.9,0.428]
[1755052450104,0.55,4594.1,4593.0,3.376]
[1755052450322,0.55,4593.9,4593.1,3.376]
[1755052450470,0.55,4593.9,4593.2,3.376]
[1755052451101,2.17627966,4595.0,4592.7,5.218]
[1755052451102,2.0114,4593.8,4592.7,5.218]
[1755052451300,0.55,4593.6,4592.8,3.376]
[1755052451476,0.4442,4593.7,4592.6,0.001]
[1755052451477,0.55,4593.4,4592.6,0.001]
[1755052451678,0.55,4593.4,4592.7,8.594]
[1755052452026,0.55,4593.4,4592.7,5.218]
[1755052452226,0.55,4593.2,4592.8,3.376]
[1755052452430,0.55,4593.0,4592.9,3.376]
[1755052452728,0.86114,4593.0,4592.9,3.376]
[1755052453027,2.5614,4593.0,4592.9,3.376]
[1755052453326,2.5614,4593.0,4592.9,8.594]
[1755052453473,2.5614,4593.0,4592.7,5.218]
[1755052453677,0.9942,4592.9,4592.7,5.218]
[1755052453911,0.55,4592.7,4592.6,0.001]
[1755052454274,0.55,4592.7,4592.2,0.001]
[1755052454275,2.5614,4592.7,4592.2,0.001]
[1755052454487,0.55,4592.5,4592.2,0.001]
[1755052454706,0.55,4592.5,4592.3,3.376]
[1755052454912,0.55,4592.3,4592.2,0.001]
[1755052455123,0.55,4592.3,4592.2,2.943]
[1755052455424,2.5614,4592.3,4592.2,2.943]
[1755052455811,2.5614,4592.3,4592.1,5.218]
[1755052456008,2.0114,4592.2,4592.1,5.219]
[1755052456214,2.31492817,4592.2,4592.1,5.219]
[1755052456414,0.55,4592.1,4590.8,2.1408]
[1755052456614,0.55,4592.1,4590.9,5.219]
[1755052457240,0.55,4592.1,4591.0,3.376]
[1755052457951,0.1088,4591.1,4590.9,5.219]
[1755052458099,0.1088,4591.1,4591.0,5.0888]
[1755052458701,0.6588,4591.1,4591.0,3.376]
[1755052459149,0.1088,4591.1,4591.0,5.0888]
[1755052459446,0.1088,4591.1,4591.0,5.5168]
[1755052459639,0.4442,4593.1,4591.1,11.763785]
[1755052459804,0.4442,4593.1,4591.2,2.1408]
[1755052459805,2.0114,4593.1,4591.2,2.1408]
[1755052460007,2.0114,4593.0,4591.2,2.1408]
[1755052460201,2.17737857,4592.7,4591.2,1.7128]
[1755052460403,2.43027786,4592.6,4591.3,3.378]
[1755052460651,0.9942,4592.5,4591.3,3.378]
[1755052460950,2.72756897,4592.3,4591.4,3.379]
[1755052461154,28.93240935,4592.5,4590.9,5.219]
[1755052461155,0.1088,4591.0,4590.9,5.219]
[1755052461307,0.1088,4591.0,4590.9,8.598]
[1755052461506,0.1088,4591.0,4590.9,10.3108]
[1755052461926,2.20655568,4592.2,4591.0,26.745717]
[1755052462124,0.4442,4592.9,4591.1,2.1408]
[1755052462328,0.1088,4591.5,4591.2,0.428]
[1755052462664,0.1088,4591.5,4591.3,6.992551]
[1755052462941,0.1088,4591.5,4591.2,0.428]
[1755052462942,0.1088,4591.8,4591.4,14.604008]
[1755052463145,0.1088,4591.8,4591.5,17.493897]
[1755052463342,0.1088,4591.8,4591.5,2.1408]
[1755052463542,0.1088,4591.8,4591.6,5.5248]
[1755052463844,0.55,4592.9,4591.7,3.384]
[1755052464034,0.75114,4592.9,4591.7,3.384]
[1755052464241,0.1088,4591.8,4591.7,3.384]
[1755052464411,0.1088,4591.8,4591.7,5.5248]
[1755052464611,0.1088,4592.0,4591.7,34.432781]
[1755052464947,0.1088,4592.0,4591.8,16.581862]
[1755052465121,0.1088,4592.0,4591.9,6.116379]
[1755052465443,0.1088,4592.0,4591.9,3.383]
[1755052465754,0.55,4592.5,4591.9,3.383]
[1755052465911,0.55,4592.3,4591.9,3.383]
[1755052467733,0.9942,4592.3,4591.9,3.383]
[1755052467934,0.9942,4592.3,4591.2,2.1408]
[1755052468239,0.55,4592.3,4591.3,3.383]
[1755052469313,0.55,4592.3,4592.0,0.082769]
[1755052469517,0.55,4592.3,4592.1,3.383]
[1755052470765,0.25614,4592.4,4592.1,3.383]
[1755052471050,0.002,4593.5,4592.1,3.383]
[1755052471255,0.002,4593.5,4592.2,2.0577]
[1755052471618,0.002,4593.5,4592.1,3.383]
[1755052471818,0.55,4593.3,4592.1,3.383]
[1755052472053,0.55,4593.3,4592.1,3.831]
[1755052475148,0.25189,4593.3,4592.2,2.0577]
[1755052475348,0.002,4593.5,4592.3,23.645886]
[1755052475655,0.002,4593.5,4592.4,10.210914]
[1755052476155,0.1088,4592.5,4592.4,10.210914]
[1755052476456,0.1088,4592.5,4592.4,10.433217]
[1755052476754,0.1088,4592.5,4592.4,9.094101]
[1755052476997,0.1088,4592.5,4592.4,8.704094]
[1755052477365,0.1088,4592.5,4592.4,2.601]
[1755052477657,0.1088,4592.5,4592.1,3.383]
[1755052477862,0.1088,4592.5,4592.2,2.344485]
[1755052478062,0.1088,4592.5,4592.2,2.0577]
[1755052478259,0.1088,4592.5,4592.3,2.606023]
[1755052478458,0.1088,4592.5,4592.1,3.383]
[1755052478459,0.1088,4592.5,4592.2,6.20651]
[1755052478645,0.1088,4592.5,4592.3,9.391092]
[1755052478965,0.1088,4592.5,4592.3,2.0577]
[1755052479647,0.1088,4592.5,4592.1,3.383]
[1755052479648,0.1088,4592.5,4592.4,11.98506]
[1755052479961,0.1088,4592.5,4592.4,11.038113]
[1755052480148,0.1088,4592.5,4592.4,10.129501]
[1755052480324,0.1088,4592.5,4592.4,9.216389]
[1755052480523,0.1088,4592.5,4592.4,6.8297]
[1755052480745,0.1088,4592.5,4592.4,5.22]
[1755052480942,0.1088,4592.5,4592.4,8.326607]
[1755052481180,0.1088,4592.5,4592.4,7.611675]
[1755052481344,0.1088,4592.5,4592.4,5.22]
[1755052482056,2.6257,4592.5,4592.4,8.597]
[1755052482260,2.88827,4592.5,4592.4,8.597]
[1755052482463,2.88827,4592.5,4592.4,5.22]
[1755052482664,0.55,4592.4,4592.1,5.22]
[1755052482879,0.1088,4592.2,4592.1,5.22]
[1755052483060,2.761827,4592.2,4592.1,5.22]
[1755052483957,0.55,4592.1,4592.0,0.082769]
[1755052484157,2.5169,4592.1,4592.0,3.459769]
[1755052484384,2.5169,4592.1,4591.9,5.22]
[1755052484385,0.55,4592.1,4591.9,5.22]
[1755052484943,0.244927,4592.2,4591.9,5.22]
[1755052485184,0.1088,4592.2,4591.9,7.2777]